[Event "GrandPrix_30.05"]
[Site "Chess.com"]
[Date "2020.05.30"]
[Round "5"]
[White "MiroVlasenko"]
[Black "VolodymyrMolyboha"]
[Result "1/2-1/2"]
[WhiteElo "2307"]
[BlackElo "2195"]
[TimeControl "600+2"]
[EndTime "10:18:49 PDT"]
[Termination "Game drawn by repetition"]

1. e4 {[%clk 0:10:01.9]} 1... g6 {[%clk 0:09:57.6]} 2. d4 {[%clk 0:10:02.1]}
2... Bg7 {[%clk 0:09:58.2]} 3. Nc3 {[%clk 0:10:03.3]} 3... d6 {[%clk 0:09:58.9]}
4. f4 {[%clk 0:10:04.1]} 4... c6 {[%clk 0:09:59.7]} 5. Nf3 {[%clk 0:10:04.6]}
5... Bg4 {[%clk 0:10:00.5]} 6. Be3 {[%clk 0:09:59.9]} 6... d5 {[%clk 0:10:01.6]}
7. e5 {[%clk 0:09:59.2]} 7... e6 {[%clk 0:10:02.2]} 8. h3 {[%clk 0:09:56.1]}
8... Bxf3 {[%clk 0:10:02.7]} 9. Qxf3 {[%clk 0:09:56.6]} 9... h5 {[%clk
0:10:03.2]} 10. g4 {[%clk 0:09:43.5]} 10... Qh4+ {[%clk 0:10:03]} 11. Bf2 {[%clk
0:08:53.1]} 11... hxg4 {[%clk 0:10:02.3]} 12. Qg2 {[%clk 0:08:48.1]} 12... gxh3
{[%clk 0:09:45.2]} 13. Rxh3 {[%clk 0:08:47.5]} 13... Qxh3 {[%clk 0:09:44]} 14.
Qxh3 {[%clk 0:08:46.6]} 14... Rxh3 {[%clk 0:09:44.7]} 15. Bxh3 {[%clk
0:08:47.7]} 15... Nd7 {[%clk 0:09:40.5]} 16. Bh4 {[%clk 0:08:38.6]} 16... Bh6
{[%clk 0:09:22.6]} 17. Ne2 {[%clk 0:08:37.3]} 17... c5 {[%clk 0:09:21.1]} 18. c3
{[%clk 0:08:09]} 18... Rc8 {[%clk 0:09:18.7]} 19. Kd2 {[%clk 0:08:02.4]} 19...
Nb6 {[%clk 0:09:15.1]} 20. b3 {[%clk 0:07:58.8]} 20... cxd4 {[%clk 0:08:43]} 21.
cxd4 {[%clk 0:07:57.8]} 21... Ne7 {[%clk 0:08:30.9]} 22. Rh1 {[%clk 0:07:29.9]}
22... Nc6 {[%clk 0:08:17]} 23. Bf6 {[%clk 0:07:05.3]} 23... Bf8 {[%clk
0:08:10.7]} 24. Bf1 {[%clk 0:06:43.6]} 24... a6 {[%clk 0:07:42.2]} 25. Rh8
{[%clk 0:06:19.3]} 25... Nd7 {[%clk 0:06:51.2]} 26. Bg5 {[%clk 0:06:14.4]} 26...
Ne7 {[%clk 0:06:18]} 27. Bh3 {[%clk 0:05:55.3]} 27... Nc6 {[%clk 0:05:46.3]} 28.
Bh6 {[%clk 0:05:01.3]} 28... Ke7 {[%clk 0:05:26.1]} 29. Bg5+ {[%clk 0:04:48.6]}
29... Ke8 {[%clk 0:05:26.8]} 30. Bh6 {[%clk 0:04:42.1]} 30... b5 {[%clk
0:05:21.2]} 31. a3 {[%clk 0:04:07.4]} 31... Na5 {[%clk 0:05:08.9]} 32. Nc1
{[%clk 0:04:06.5]} 32... Ke7 {[%clk 0:04:23.1]} 33. Bg5+ {[%clk 0:03:38.1]}
33... Ke8 {[%clk 0:04:23.5]} 34. Bh6 {[%clk 0:03:39.3]} 34... Ke7 {[%clk
0:04:24.5]} 35. Bg5+ {[%clk 0:03:40.1]} 35... Ke8 {[%clk 0:04:25.8]} 36. Bh6
{[%clk 0:03:40]} 1/2-1/2

[Event "GrandPrix_30.05"]
[Site "Chess.com"]
[Date "2020.05.30"]
[Round "5"]
[White "WhiteCapital80"]
[Black "AlexVanGog"]
[Result "1-0"]
[WhiteElo "2364"]
[BlackElo "2429"]
[TimeControl "600+2"]
[EndTime "10:19:10 PDT"]
[Termination "WhiteCapital80 won by resignation"]

1. e4 {[%clk 0:10:00.6]} 1... c5 {[%clk 0:10:00.3]} 2. Nf3 {[%clk 0:09:57.8]}
2... d6 {[%clk 0:10:01.4]} 3. d4 {[%clk 0:09:54.9]} 3... cxd4 {[%clk 0:10:03.3]}
4. Nxd4 {[%clk 0:09:55.9]} 4... Nf6 {[%clk 0:10:04.2]} 5. Nc3 {[%clk 0:09:56.7]}
5... a6 {[%clk 0:10:05.7]} 6. Be2 {[%clk 0:09:57.6]} 6... e5 {[%clk 0:10:05.5]}
7. Nb3 {[%clk 0:09:58.2]} 7... Be7 {[%clk 0:10:05.6]} 8. O-O {[%clk 0:09:59]}
8... O-O {[%clk 0:10:05.3]} 9. Kh1 {[%clk 0:10:00.1]} 9... b5 {[%clk 0:10:03.9]}
10. a4 {[%clk 0:09:59.7]} 10... b4 {[%clk 0:10:05]} 11. Nd5 {[%clk 0:09:59.6]}
11... Be6 {[%clk 0:10:06.5]} 12. f4 {[%clk 0:08:57.6]} 12... Bxd5 {[%clk
0:09:03.8]} 13. exd5 {[%clk 0:08:56.6]} 13... Nbd7 {[%clk 0:09:05.3]} 14. fxe5
{[%clk 0:08:40.3]} 14... Nxe5 {[%clk 0:09:05.9]} 15. Nd4 {[%clk 0:08:24.7]}
15... Nxd5 {[%clk 0:09:02.4]} 16. Nf5 {[%clk 0:08:15.8]} 16... Nc7 {[%clk
0:08:42.5]} 17. Bd2 {[%clk 0:07:18.9]} 17... a5 {[%clk 0:08:38.5]} 18. c3 {[%clk
0:07:17.5]} 18... bxc3 {[%clk 0:08:40.2]} 19. Bxc3 {[%clk 0:07:18.2]} 19... Ne6
{[%clk 0:08:36.6]} 20. Qd5 {[%clk 0:06:53.8]} 20... Bf6 {[%clk 0:07:20.4]} 21.
Nxd6 {[%clk 0:06:22.2]} 21... Nd7 {[%clk 0:06:24.4]} 22. Nxf7 {[%clk 0:04:29.5]}
22... Kxf7 {[%clk 0:05:54.6]} 23. Rad1 {[%clk 0:04:29.7]} 23... Ra7 {[%clk
0:04:55.1]} 24. Bc4 {[%clk 0:04:18.2]} 24... Re8 {[%clk 0:04:51.3]} 25. Qh5+
{[%clk 0:03:22.6]} 25... Kg8 {[%clk 0:04:34.4]} 26. Bxf6 {[%clk 0:03:20.5]}
26... gxf6 {[%clk 0:04:29]} 27. Qg4+ {[%clk 0:03:20.7]} 27... Kf7 {[%clk
0:04:22.1]} 28. Rd6 {[%clk 0:03:08.4]} 1-0

[Event "GrandPrix_30.05"]
[Site "Chess.com"]
[Date "2020.05.30"]
[Round "5"]
[White "tsvet2005"]
[Black "NikolaN98"]
[Result "1-0"]
[WhiteElo "2227"]
[BlackElo "2068"]
[TimeControl "600+2"]
[EndTime "10:19:45 PDT"]
[Termination "tsvet2005 won by resignation"]

1. d4 {[%clk 0:10:01.9]} 1... e6 {[%clk 0:09:59.8]} 2. c4 {[%clk 0:10:03.2]}
2... f5 {[%clk 0:09:59.4]} 3. Nf3 {[%clk 0:10:03.7]} 3... Nf6 {[%clk 0:09:58.6]}
4. g3 {[%clk 0:10:04.8]} 4... Be7 {[%clk 0:09:57.7]} 5. Bg2 {[%clk 0:10:05.6]}
5... O-O {[%clk 0:09:59.3]} 6. O-O {[%clk 0:10:06.9]} 6... d6 {[%clk 0:10:00]}
7. Nc3 {[%clk 0:10:06.9]} 7... a5 {[%clk 0:10:00.3]} 8. b3 {[%clk 0:10:06.9]}
8... Ne4 {[%clk 0:09:59.8]} 9. Nxe4 {[%clk 0:10:04.9]} 9... fxe4 {[%clk
0:10:00.7]} 10. Ne1 {[%clk 0:10:05.7]} 10... d5 {[%clk 0:10:02]} 11. f3 {[%clk
0:10:00.2]} 11... Nc6 {[%clk 0:08:54]} 12. fxe4 {[%clk 0:09:50.8]} 12... Rxf1+
{[%clk 0:08:53.7]} 13. Kxf1 {[%clk 0:09:50.4]} 13... dxc4 {[%clk 0:08:53.1]} 14.
Nf3 {[%clk 0:09:38.8]} 14... e5 {[%clk 0:08:30.1]} 15. d5 {[%clk 0:09:25.4]}
15... cxb3 {[%clk 0:07:58.4]} 16. Bb2 {[%clk 0:09:22.7]} 16... Nb4 {[%clk
0:07:45.6]} 17. axb3 {[%clk 0:09:17.1]} 17... Bd6 {[%clk 0:07:41.7]} 18. Qd2
{[%clk 0:05:29.3]} 18... Qe7 {[%clk 0:07:25.9]} 19. Kg1 {[%clk 0:05:26.8]} 19...
Bd7 {[%clk 0:07:24.7]} 20. Qc3 {[%clk 0:05:17]} 20... Re8 {[%clk 0:05:48.6]} 21.
Rxa5 {[%clk 0:05:11]} 21... b6 {[%clk 0:05:43.5]} 22. Ra7 {[%clk 0:04:58.1]}
22... Bg4 {[%clk 0:05:26]} 23. Kh1 {[%clk 0:04:35.4]} 23... Qd7 {[%clk
0:05:06.9]} 24. Qd2 {[%clk 0:04:25.2]} 24... h6 {[%clk 0:04:42]} 25. Nxe5 {[%clk
0:03:31.4]} 25... Rxe5 {[%clk 0:04:23.1]} 26. Bxe5 {[%clk 0:03:21.3]} 26... Bxe5
{[%clk 0:04:24]} 27. Qxb4 {[%clk 0:03:20.9]} 27... Bxe2 {[%clk 0:04:11.3]} 28.
Ra8+ {[%clk 0:03:09.9]} 28... Kh7 {[%clk 0:04:09.9]} 29. Qf8 {[%clk 0:03:11.1]}
29... Bb5 {[%clk 0:03:53.5]} 30. Qf5+ {[%clk 0:02:57.2]} 30... g6 {[%clk
0:03:53.1]} 31. Qxe5 {[%clk 0:02:56.7]} 1-0

[Event "GrandPrix_30.05"]
[Site "Chess.com"]
[Date "2020.05.30"]
[Round "5"]
[White "bratkoo"]
[Black "Kiril1965"]
[Result "0-1"]
[WhiteElo "2186"]
[BlackElo "2510"]
[TimeControl "600+2"]
[EndTime "10:19:57 PDT"]
[Termination "Kiril1965 won by resignation"]

1. e4 {[%clk 0:10:01.9]} 1... e5 {[%clk 0:09:54.6]} 2. Nf3 {[%clk 0:10:01.6]}
2... Nc6 {[%clk 0:09:55.2]} 3. Bc4 {[%clk 0:10:02.3]} 3... Bc5 {[%clk
0:09:48.5]} 4. O-O {[%clk 0:09:58.1]} 4... d6 {[%clk 0:09:46.2]} 5. c3 {[%clk
0:09:58.4]} 5... Qf6 {[%clk 0:09:29.8]} 6. h3 {[%clk 0:09:32.3]} 6... Nge7
{[%clk 0:09:21.9]} 7. d4 {[%clk 0:09:09.5]} 7... exd4 {[%clk 0:09:20.4]} 8. Bg5
{[%clk 0:09:10.3]} 8... Qg6 {[%clk 0:09:20.4]} 9. cxd4 {[%clk 0:09:10.9]} 9...
Nxd4 {[%clk 0:09:01.4]} 10. Bxe7 {[%clk 0:09:10]} 10... Nxf3+ {[%clk 0:08:19.8]}
11. Qxf3 {[%clk 0:09:10.5]} 11... Kxe7 {[%clk 0:08:20.6]} 12. Nc3 {[%clk
0:09:10.3]} 12... c6 {[%clk 0:08:21.1]} 13. Rad1 {[%clk 0:09:07.5]} 13... Re8
{[%clk 0:08:07.2]} 14. Na4 {[%clk 0:09:03.7]} 14... Be6 {[%clk 0:07:01.8]} 15.
Nxc5 {[%clk 0:08:38.5]} 15... Bxc4 {[%clk 0:06:52.4]} 16. Nd3 {[%clk 0:08:15.4]}
16... Kf8 {[%clk 0:06:51.9]} 17. Rfe1 {[%clk 0:08:16.3]} 17... Bxa2 {[%clk
0:06:36]} 18. Nf4 {[%clk 0:08:17]} 18... Qf6 {[%clk 0:06:34.1]} 19. Qg3 {[%clk
0:08:12.7]} 19... Rad8 {[%clk 0:06:16.8]} 20. e5 {[%clk 0:07:56.4]} 20... Rxe5
{[%clk 0:05:45.5]} 21. Rxe5 {[%clk 0:07:47.8]} 21... dxe5 {[%clk 0:05:32.3]} 22.
Qa3+ {[%clk 0:07:48.1]} 22... Kg8 {[%clk 0:05:04.1]} 23. Rxd8+ {[%clk
0:07:48.3]} 23... Qxd8 {[%clk 0:05:04.3]} 24. Qxa2 {[%clk 0:07:50]} 24... exf4
{[%clk 0:05:02.2]} 25. Qxa7 {[%clk 0:07:50.7]} 25... Qc8 {[%clk 0:04:55.1]} 26.
Qd4 {[%clk 0:07:42.2]} 26... Qc7 {[%clk 0:04:53.1]} 27. h4 {[%clk 0:07:33.2]}
27... h6 {[%clk 0:04:51.6]} 28. h5 {[%clk 0:07:32.8]} 28... Qa5 {[%clk
0:04:22.2]} 29. Qxf4 {[%clk 0:07:33.3]} 29... Qa1+ {[%clk 0:04:20.3]} 30. Kh2
{[%clk 0:07:31.9]} 30... Qxb2 {[%clk 0:04:21.2]} 31. Qf5 {[%clk 0:07:11]} 31...
Qb5 {[%clk 0:03:55.9]} 32. Qc8+ {[%clk 0:06:57]} 32... Kh7 {[%clk 0:03:56]} 33.
g4 {[%clk 0:06:51.9]} 33... Qe5+ {[%clk 0:03:54.4]} 34. Kg2 {[%clk 0:06:52.3]}
34... Qd5+ {[%clk 0:03:51.5]} 35. f3 {[%clk 0:06:46.1]} 35... b5 {[%clk
0:03:52.3]} 36. Qb7 {[%clk 0:06:47.2]} 36... Qd2+ {[%clk 0:03:51.2]} 37. Kh3
{[%clk 0:06:42.7]} 37... Qd5 {[%clk 0:03:48.6]} 38. Kg2 {[%clk 0:06:43.3]} 38...
f5 {[%clk 0:03:45.8]} 39. Kg3 {[%clk 0:06:40.4]} 39... Qe5+ {[%clk 0:03:41.6]}
40. Kh3 {[%clk 0:06:39.3]} 40... fxg4+ {[%clk 0:03:40.4]} 41. fxg4 {[%clk
0:06:40]} 41... Qe4 {[%clk 0:03:40.6]} 42. Qf7 {[%clk 0:06:28.7]} 42... b4
{[%clk 0:03:30.3]} 43. Kh4 {[%clk 0:06:30]} 43... c5 {[%clk 0:03:29]} 44. Qf8
{[%clk 0:06:20.1]} 44... b3 {[%clk 0:03:12.3]} 45. Kh3 {[%clk 0:06:13.4]} 45...
b2 {[%clk 0:03:07.2]} 46. g5 {[%clk 0:06:13.9]} 46... hxg5 {[%clk 0:03:00.9]}
47. h6 {[%clk 0:06:14.7]} 47... Qh1+ {[%clk 0:02:36.6]} 48. Kg3 {[%clk
0:06:12.2]} 48... Qh4+ {[%clk 0:02:29.7]} 49. Kg2 {[%clk 0:06:13.3]} 49... Qe4+
{[%clk 0:02:25.6]} 50. Kh3 {[%clk 0:06:10.4]} 50... Kxh6 {[%clk 0:02:20.2]} 0-1

[Event "GrandPrix_30.05"]
[Site "Chess.com"]
[Date "2020.05.30"]
[Round "5"]
[White "cassoulet"]
[Black "PavelShkapenko"]
[Result "1/2-1/2"]
[WhiteElo "2209"]
[BlackElo "2401"]
[TimeControl "600+2"]
[EndTime "10:19:58 PDT"]
[Termination "Game drawn by agreement"]

1. e4 {[%clk 0:10:01.9]} 1... c5 {[%clk 0:09:59.6]} 2. Nf3 {[%clk 0:10:02.5]}
2... e6 {[%clk 0:10:00.5]} 3. d4 {[%clk 0:10:03.2]} 3... cxd4 {[%clk 0:10:01.8]}
4. Nxd4 {[%clk 0:10:05.1]} 4... Nf6 {[%clk 0:10:03.1]} 5. Nc3 {[%clk 0:10:06.6]}
5... Nc6 {[%clk 0:10:04.6]} 6. Ndb5 {[%clk 0:10:06.9]} 6... Bb4 {[%clk
0:10:05.2]} 7. a3 {[%clk 0:10:06.1]} 7... Bxc3+ {[%clk 0:10:06.6]} 8. Nxc3
{[%clk 0:10:08]} 8... d5 {[%clk 0:10:08]} 9. exd5 {[%clk 0:10:05.4]} 9... exd5
{[%clk 0:10:09.4]} 10. Bd3 {[%clk 0:10:06.8]} 10... d4 {[%clk 0:10:10.9]} 11.
Ne2 {[%clk 0:10:07.4]} 11... Bf5 {[%clk 0:10:11.3]} 12. Bxf5 {[%clk 0:09:38.8]}
12... Qa5+ {[%clk 0:10:11.5]} 13. b4 {[%clk 0:09:40.3]} 13... Qxf5 {[%clk
0:10:12.4]} 14. O-O {[%clk 0:09:41.9]} 14... O-O {[%clk 0:10:09.5]} 15. Nxd4
{[%clk 0:09:40.8]} 15... Nxd4 {[%clk 0:10:09.7]} 16. Qxd4 {[%clk 0:09:42.7]}
16... Qxc2 {[%clk 0:09:15.5]} 17. Bg5 {[%clk 0:09:34.9]} 17... Rfd8 {[%clk
0:08:46]} 18. Qh4 {[%clk 0:09:34.9]} 18... Rd6 {[%clk 0:08:47.1]} 19. Rac1
{[%clk 0:09:20.2]} 19... Qf5 {[%clk 0:08:09.3]} 20. Rc7 {[%clk 0:09:08.7]} 20...
b5 {[%clk 0:07:03.7]} 21. Bxf6 {[%clk 0:08:54.4]} 21... Qxf6 {[%clk 0:06:12.5]}
22. Qxf6 {[%clk 0:08:53]} 22... Rxf6 {[%clk 0:06:13.5]} 23. Rd1 {[%clk 0:08:49]}
23... g6 {[%clk 0:06:07.7]} 24. f3 {[%clk 0:08:16.3]} 24... a5 {[%clk
0:06:05.8]} 25. Rd5 {[%clk 0:07:42.8]} 25... axb4 {[%clk 0:06:02.9]} 26. axb4
{[%clk 0:07:44.7]} 26... Ra2 {[%clk 0:04:45]} 27. Rxb5 {[%clk 0:07:23.5]} 27...
Rd6 {[%clk 0:04:42.1]} 28. h4 {[%clk 0:07:11.9]} 28... Rdd2 {[%clk 0:04:19.9]}
29. Rg5 {[%clk 0:07:10.1]} 29... Rab2 {[%clk 0:04:14.5]} 30. Rb7 {[%clk
0:06:49.2]} 30... h6 {[%clk 0:03:22.3]} 31. Rg3 {[%clk 0:06:21.9]} 31... h5
{[%clk 0:02:56.7]} 32. Kh2 {[%clk 0:04:34.1]} 32... Rd4 {[%clk 0:02:53.4]} 33.
Kh3 {[%clk 0:04:27.1]} 33... Rbxb4 {[%clk 0:02:28.6]} 34. Rxb4 {[%clk 0:04:27]}
34... Rxb4 {[%clk 0:02:29.7]} 35. Rg5 {[%clk 0:04:28]} 1/2-1/2

[Event "GrandPrix_30.05"]
[Site "Chess.com"]
[Date "2020.05.30"]
[Round "5"]
[White "AliKa2810"]
[Black "chansen64"]
[Result "0-1"]
[WhiteElo "2105"]
[BlackElo "2075"]
[TimeControl "600+2"]
[EndTime "10:20:06 PDT"]
[Termination "chansen64 won by resignation"]

1. d4 {[%clk 0:10:01.9]} 1... Nf6 {[%clk 0:09:59.8]} 2. c4 {[%clk 0:10:01.5]}
2... e6 {[%clk 0:10:00.6]} 3. Nf3 {[%clk 0:09:59.4]} 3... Bb4+ {[%clk
0:10:00.9]} 4. Nbd2 {[%clk 0:09:59]} 4... d5 {[%clk 0:09:57.2]} 5. a3 {[%clk
0:09:49.9]} 5... Be7 {[%clk 0:09:57]} 6. Qc2 {[%clk 0:09:45.8]} 6... O-O {[%clk
0:09:57.3]} 7. g3 {[%clk 0:09:37.2]} 7... b6 {[%clk 0:09:53.9]} 8. Bg2 {[%clk
0:09:37.9]} 8... Bb7 {[%clk 0:09:54.8]} 9. O-O {[%clk 0:09:39.5]} 9... Nbd7
{[%clk 0:09:44.1]} 10. Rd1 {[%clk 0:09:20]} 10... Rc8 {[%clk 0:09:39.7]} 11. b3
{[%clk 0:08:05.5]} 11... c5 {[%clk 0:09:37]} 12. Bb2 {[%clk 0:08:05.6]} 12...
cxd4 {[%clk 0:09:24.4]} 13. Nxd4 {[%clk 0:08:05.7]} 13... Qc7 {[%clk 0:09:20.3]}
14. Rac1 {[%clk 0:08:03.6]} 14... Qb8 {[%clk 0:09:19.4]} 15. Qb1 {[%clk
0:08:03.5]} 15... Rfd8 {[%clk 0:09:09.1]} 16. cxd5 {[%clk 0:07:44.6]} 16... Nxd5
{[%clk 0:08:54.1]} 17. Nc4 {[%clk 0:07:45.3]} 17... a6 {[%clk 0:08:05.8]} 18. e4
{[%clk 0:07:35.9]} 18... N5f6 {[%clk 0:08:03.8]} 19. e5 {[%clk 0:07:36.9]} 19...
Nd5 {[%clk 0:08:03.8]} 20. h4 {[%clk 0:07:24.2]} 20... Ba8 {[%clk 0:06:23.8]}
21. Nf5 {[%clk 0:06:26.5]} 21... exf5 {[%clk 0:05:52.1]} 22. Bxd5 {[%clk
0:06:26.4]} 22... Bxd5 {[%clk 0:05:52.8]} 23. Rxd5 {[%clk 0:06:26.6]} 23... g6
{[%clk 0:05:52.2]} 24. Rcd1 {[%clk 0:06:22.4]} 24... Nf8 {[%clk 0:05:49.2]} 25.
h5 {[%clk 0:06:13.4]} 25... Rxd5 {[%clk 0:05:38.5]} 26. Rxd5 {[%clk 0:06:12.8]}
26... Rd8 {[%clk 0:05:37.4]} 27. Nd6 {[%clk 0:06:07.9]} 27... Ne6 {[%clk
0:05:26.2]} 28. Qd1 {[%clk 0:05:49.9]} 28... Bf8 {[%clk 0:05:15.8]} 29. b4
{[%clk 0:05:26.3]} 29... Qc7 {[%clk 0:04:53.4]} 30. Qd3 {[%clk 0:05:24.2]} 30...
b5 {[%clk 0:04:43.4]} 31. Qd2 {[%clk 0:05:04.1]} 31... Qc6 {[%clk 0:04:30.1]}
32. Rd3 {[%clk 0:04:42.7]} 32... Qa8 {[%clk 0:04:12.1]} 33. hxg6 {[%clk
0:04:26.5]} 33... hxg6 {[%clk 0:04:11.8]} 34. Kh2 {[%clk 0:03:42.4]} 34... Be7
{[%clk 0:04:07.3]} 35. f4 {[%clk 0:03:30.1]} 35... Kg7 {[%clk 0:04:06]} 36. Qg2
{[%clk 0:03:24.8]} 36... Qa7 {[%clk 0:03:42.5]} 37. Rd2 {[%clk 0:03:12.2]} 37...
Rh8+ {[%clk 0:03:41]} 0-1

[Event "GrandPrix_30.05"]
[Site "Chess.com"]
[Date "2020.05.30"]
[Round "5"]
[White "LuckyLuka04"]
[Black "nikosgal"]
[Result "0-1"]
[WhiteElo "2150"]
[BlackElo "2261"]
[TimeControl "600+2"]
[EndTime "10:20:21 PDT"]
[Termination "nikosgal won by resignation"]

1. d4 {[%clk 0:10:01.9]} 1... Nf6 {[%clk 0:10:00.3]} 2. Nf3 {[%clk 0:10:03]}
2... e6 {[%clk 0:10:01.5]} 3. Bf4 {[%clk 0:10:04.1]} 3... c5 {[%clk 0:10:02.6]}
4. e3 {[%clk 0:10:05.4]} 4... Be7 {[%clk 0:10:02.9]} 5. Bd3 {[%clk 0:10:01.2]}
5... O-O {[%clk 0:10:02.7]} 6. h3 {[%clk 0:10:01.9]} 6... b6 {[%clk 0:10:03.7]}
7. c3 {[%clk 0:10:02.3]} 7... Bb7 {[%clk 0:10:05.2]} 8. O-O {[%clk 0:10:02.9]}
8... cxd4 {[%clk 0:10:01.4]} 9. cxd4 {[%clk 0:10:02.9]} 9... Ba6 {[%clk
0:10:00.2]} 10. Nc3 {[%clk 0:10:02.5]} 10... Qc8 {[%clk 0:10:00.3]} 11. e4
{[%clk 0:09:52.2]} 11... Bxd3 {[%clk 0:09:53.5]} 12. Qxd3 {[%clk 0:09:54.1]}
12... Qb7 {[%clk 0:09:54.7]} 13. Rac1 {[%clk 0:07:58.7]} 13... d5 {[%clk
0:09:52.4]} 14. e5 {[%clk 0:07:05.7]} 14... Ne4 {[%clk 0:09:52.6]} 15. Nb5
{[%clk 0:06:51.7]} 15... Nc6 {[%clk 0:09:47.8]} 16. Nh2 {[%clk 0:06:25.6]} 16...
a6 {[%clk 0:08:28.1]} 17. Na3 {[%clk 0:06:05.4]} 17... f6 {[%clk 0:08:27]} 18.
exf6 {[%clk 0:05:31.1]} 18... Bxf6 {[%clk 0:08:25.7]} 19. Be3 {[%clk 0:05:19.3]}
19... Rac8 {[%clk 0:08:26.4]} 20. Nc2 {[%clk 0:05:12]} 20... Na5 {[%clk
0:08:12.9]} 21. Ng4 {[%clk 0:04:33.3]} 21... Be7 {[%clk 0:08:12.2]} 22. f3
{[%clk 0:04:07.7]} 22... Ng3 {[%clk 0:08:08.4]} 23. Rfe1 {[%clk 0:04:00.8]}
23... Nc4 {[%clk 0:07:48.7]} 24. Bf2 {[%clk 0:03:48.8]} 24... Nh5 {[%clk
0:07:49]} 25. b3 {[%clk 0:03:39]} 25... Nf4 {[%clk 0:07:46.7]} 26. Qc3 {[%clk
0:03:25.6]} 26... Ne5 {[%clk 0:07:41.5]} 27. Qe3 {[%clk 0:02:55.3]} 27... Ned3
{[%clk 0:07:42]} 28. Kh1 {[%clk 0:01:47.2]} 28... Nxe1 {[%clk 0:07:38.3]} 29.
Nxe1 {[%clk 0:01:43.8]} 29... Rxc1 {[%clk 0:07:36.8]} 30. Qxc1 {[%clk
0:01:45.7]} 30... Bd6 {[%clk 0:07:31.2]} 31. Qe3 {[%clk 0:01:35.4]} 31... Qe7
{[%clk 0:07:27.5]} 32. Bg3 {[%clk 0:01:18.7]} 32... Ng6 {[%clk 0:07:25.3]} 33.
Bf2 {[%clk 0:00:42.8]} 33... h5 {[%clk 0:07:18.6]} 34. Ne5 {[%clk 0:00:38.8]}
34... Nxe5 {[%clk 0:07:19.2]} 35. dxe5 {[%clk 0:00:40.7]} 35... Bc5 {[%clk
0:07:20.7]} 36. Qe2 {[%clk 0:00:41.4]} 36... Bxf2 {[%clk 0:07:20.9]} 37. Qxf2
{[%clk 0:00:43.3]} 37... Qc5 {[%clk 0:07:22]} 38. Qh4 {[%clk 0:00:43.6]} 38...
Qe3 {[%clk 0:07:21]} 39. Nc2 {[%clk 0:00:33.4]} 39... Qxe5 {[%clk 0:07:18.6]}
40. Qf2 {[%clk 0:00:34.3]} 40... Rc8 {[%clk 0:07:14.2]} 41. Qd4 {[%clk
0:00:06.9]} 41... Qxd4 {[%clk 0:07:12.8]} 42. Nxd4 {[%clk 0:00:08.8]} 42... e5
{[%clk 0:07:14.2]} 43. Nf5 {[%clk 0:00:09.8]} 43... Rc1+ {[%clk 0:07:14.8]} 44.
Kh2 {[%clk 0:00:11.2]} 44... d4 {[%clk 0:07:16.3]} 45. Ng3 {[%clk 0:00:09]}
45... d3 {[%clk 0:07:16.3]} 46. Ne4 {[%clk 0:00:10.3]} 46... Re1 {[%clk
0:07:16.6]} 47. Kg3 {[%clk 0:00:09]} 47... Rxe4 {[%clk 0:07:17.2]} 48. fxe4
{[%clk 0:00:10.9]} 48... d2 {[%clk 0:07:18.5]} 0-1

[Event "GrandPrix_30.05"]
[Site "Chess.com"]
[Date "2020.05.30"]
[Round "5"]
[White "cukus"]
[Black "chessfreak35"]
[Result "0-1"]
[WhiteElo "2204"]
[BlackElo "2464"]
[TimeControl "600+2"]
[EndTime "10:20:30 PDT"]
[Termination "chessfreak35 won by resignation"]

1. e4 {[%clk 0:09:55.4]} 1... e5 {[%clk 0:10:00]} 2. Nf3 {[%clk 0:09:55.1]} 2...
Nc6 {[%clk 0:10:00.9]} 3. Bb5 {[%clk 0:09:54.9]} 3... Nf6 {[%clk 0:10:01.9]} 4.
O-O {[%clk 0:09:54.1]} 4... Nxe4 {[%clk 0:10:02.6]} 5. Re1 {[%clk 0:09:54.3]}
5... Nd6 {[%clk 0:10:03.9]} 6. Nxe5 {[%clk 0:09:55.1]} 6... Be7 {[%clk
0:10:05.3]} 7. Bf1 {[%clk 0:09:48.2]} 7... Nxe5 {[%clk 0:10:06.1]} 8. Rxe5
{[%clk 0:09:48.1]} 8... O-O {[%clk 0:10:08]} 9. d4 {[%clk 0:09:44.7]} 9... Bf6
{[%clk 0:10:08.9]} 10. Re1 {[%clk 0:09:45.1]} 10... Re8 {[%clk 0:10:10.4]} 11.
Bf4 {[%clk 0:08:31.7]} 11... Rxe1 {[%clk 0:10:10]} 12. Qxe1 {[%clk 0:08:32.3]}
12... Ne8 {[%clk 0:10:11.6]} 13. Nc3 {[%clk 0:08:19.1]} 13... Bxd4 {[%clk
0:10:12]} 14. Nd5 {[%clk 0:07:30.3]} 14... d6 {[%clk 0:10:12.2]} 15. Bg5 {[%clk
0:06:52.1]} 15... f6 {[%clk 0:10:12.6]} 16. Bh4 {[%clk 0:06:23.9]} 16... c6
{[%clk 0:09:00.8]} 17. c3 {[%clk 0:05:43]} 17... Be5 {[%clk 0:08:49.4]} 18. Nb4
{[%clk 0:05:16.7]} 18... Bf5 {[%clk 0:08:23.6]} 19. Rd1 {[%clk 0:04:59.8]} 19...
d5 {[%clk 0:08:15.6]} 20. c4 {[%clk 0:04:43.2]} 20... Qd6 {[%clk 0:07:43.2]} 21.
cxd5 {[%clk 0:04:31.3]} 21... Bxh2+ {[%clk 0:07:04.9]} 22. Kh1 {[%clk
0:04:31.9]} 22... c5 {[%clk 0:07:01.5]} 23. Nc2 {[%clk 0:04:14.9]} 23... Bxc2
{[%clk 0:06:58.9]} 24. Rc1 {[%clk 0:04:08.8]} 24... Bf5 {[%clk 0:06:43]} 25. g3
{[%clk 0:04:08.6]} 25... g5 {[%clk 0:06:42.8]} 26. Bxg5 {[%clk 0:04:04]} 26...
fxg5 {[%clk 0:06:43.7]} 27. Kxh2 {[%clk 0:04:05.2]} 27... Nf6 {[%clk 0:06:42.9]}
28. Kg1 {[%clk 0:04:00.6]} 28... Re8 {[%clk 0:06:41.3]} 29. Qd1 {[%clk
0:03:44.3]} 29... Ne4 {[%clk 0:06:27.5]} 30. Qf3 {[%clk 0:03:41.9]} 30... Bg6
{[%clk 0:06:26.6]} 31. Qg4 {[%clk 0:03:29.3]} 31... Rf8 {[%clk 0:06:19]} 32. Bh3
{[%clk 0:03:01.9]} 32... Bf5 {[%clk 0:04:52.4]} 33. Qh5 {[%clk 0:02:51.3]} 33...
Bxh3 {[%clk 0:04:53.4]} 34. Qxh3 {[%clk 0:02:52.8]} 34... Nxf2 {[%clk
0:04:54.7]} 35. Qg2 {[%clk 0:02:50.3]} 35... g4 {[%clk 0:04:40.8]} 36. Re1
{[%clk 0:02:47.7]} 36... Rf3 {[%clk 0:04:33.8]} 37. Re6 {[%clk 0:02:46.4]} 37...
Qxd5 {[%clk 0:04:30.8]} 38. Re8+ {[%clk 0:02:44.4]} 38... Kf7 {[%clk 0:04:31.3]}
39. Rb8 {[%clk 0:02:33.7]} 39... Nh3+ {[%clk 0:04:17.2]} 40. Kh2 {[%clk
0:02:28.7]} 40... Rf2 {[%clk 0:04:16.9]} 0-1